bitfinex-derivatives/quotes_ETHF0:USTF0_20250604
["timestamp","ask_amount","ask_price","bid_price","bid_amount"]
[1749005170597,0.90075742,2616.1,2616.0,0.1388]
[1749005171203,0.90107124,2616.1,2616.0,0.1388]
[1749005171404,0.90107124,2616.1,2616.0,0.9028]
[1749005172198,0.90107124,2616.1,2616.0,0.1388]
[1749005172608,0.90107124,2616.1,2616.0,0.9028]
[1749005174404,0.90107124,2616.1,2616.0,0.1388]
[1749005174806,0.90107124,2616.1,2616.0,0.9028]
[1749005175299,0.90117629,2616.1,2616.0,0.9028]
[1749005175502,0.90117629,2616.1,2616.0,0.1388]
[1749005176105,0.90117629,2616.1,2616.0,0.9028]
[1749005177208,0.90117629,2616.1,2616.0,0.1388]
[1749005177613,0.90117629,2616.1,2616.0,0.9028]
[1749005179109,0.90148405,2616.1,2616.0,0.9028]
[1749005179509,0.90148405,2616.1,2616.0,1.3264]
[1749005179711,0.90148405,2616.1,2616.0,1.39344602]
[1749005179910,1.54168405,2616.1,2616.0,1.39344602]
[1749005180509,2.76688405,2616.1,2616.0,1.39344602]
[1749005182413,2.76688405,2616.1,2616.0,0.62944602]
[1749005182713,2.76688405,2616.1,2616.0,0.5624]
[1749005183102,2.76696783,2616.1,2616.0,0.4236]
[1749005184715,2.76696783,2616.1,2616.0,1.1876]
[1749005186318,2.76696783,2616.1,2616.0,0.4236]
[1749005186913,5.97476783,2616.1,2616.0,0.4236]
[1749005187109,5.97461895,2616.1,2616.0,0.4236]
[1749005188218,5.97461895,2616.1,2616.0,1.1876]
[1749005189409,4.10921895,2616.1,2616.0,1.1876]
[1749005191122,4.10915542,2616.1,2616.0,1.1876]
[1749005193923,4.10915542,2616.1,2616.0,1.25464602]
[1749005194320,3.2078,2616.5,2616.4,0.76388]
[1749005194527,1.2403,2617.0,2616.6,0.76382]
[1749005197322,2.4576,2617.0,2616.6,0.76382]
[1749005200125,2.4576,2617.0,2616.5,0.6304]
[1749005200326,2.01074,2616.9,2616.6,0.76382]
[1749005200522,1.247,2616.8,2616.6,0.76382]
[1749005200926,1.31404602,2616.8,2616.6,0.76382]
[1749005201122,2.07781602,2616.8,2616.5,1.39423]
[1749005201329,2.07781602,2616.8,2616.5,0.76383]
[1749005201628,1.25274218,2616.7,2616.5,0.76383]
[1749005201823,1.25274218,2616.7,2616.3,4.495]
[1749005201824,4.46054218,2616.7,2616.3,4.495]
[1749005202026,4.46054218,2616.7,2616.3,5.25891]
[1749005202027,0.6273,2616.6,2616.3,5.25891]
[1749005202329,1.8599,2616.5,2616.4,0.76388]
[1749005202524,1.8599,2616.5,2616.3,4.495]
[1749005202730,2.01088,2616.4,2616.3,4.495]
[1749005202919,0.76394,2616.2,2616.0,1.18759]
[1749005203124,0.76394,2616.2,2616.0,5.68259]
[1749005203325,1.8743,2616.1,2616.0,5.68259]
[1749005203523,0.6273,2616.1,2616.0,5.68259]
[1749005204122,0.6273,2616.1,2616.0,1.18759]
[1749005206332,1.52477469,2616.1,2616.0,0.4236]
[1749005206720,1.52476315,2616.1,2616.0,1.1876]
[1749005206920,2.86066315,2616.1,2616.0,1.1876]
[1749005207928,2.86066315,2616.1,2616.0,0.4236]
[1749005209431,5.886,2616.4,2616.0,1.1876]
[1749005209626,5.886,2616.4,2616.3,3.97171]
[1749005210427,5.886,2616.4,2616.3,8.46671]
[1749005210929,0.64454218,2616.7,2616.3,8.46671]
[1749005210930,0.00574218,2616.7,2616.3,7.7028]
[1749005211134,0.00574218,2616.7,2616.4,0.6401]
[1749005211433,0.00574218,2616.7,2616.6,0.76382]
[1749005211831,0.00574218,2616.7,2616.5,0.76385]
[1749005213138,0.00574218,2616.7,2616.6,0.76382]
[1749005214438,0.00574218,2616.7,2616.6,3.97162]
[1749005214938,0.06704602,2616.8,2616.7,0.76379]
[1749005215139,0.6361,2617.3,2616.8,0.76375]
[1749005215343,0.76368,2617.1,2616.8,0.76375]
[1749005215530,1.2294,2617.0,2616.8,0.76375]
[1749005215926,1.2294,2617.0,2616.9,0.76373]
[1749005216437,1.2294,2617.0,2616.8,0.76374]
[1749005216639,1.2294,2617.0,2616.9,0.76373]
[1749005217141,1.2294,2617.0,2616.8,0.76375]
[1749005217334,1.2294,2617.0,2616.6,3.21354218]
[1749005217639,1.2294,2617.0,2616.8,0.76374]
[1749005217835,1.2294,2617.0,2616.8,0.76376]
[1749005218435,0.6668,2616.9,2616.8,0.76376]
[1749005221235,0.67325917,2616.9,2616.8,0.76376]
[1749005221434,1.56566251,2616.9,2616.8,0.76376]
[1749005222341,1.56566251,2616.9,2616.7,5.25877]
[1749005222536,2.19780334,2616.8,2616.7,4.495]
[1749005222942,2.19780334,2616.8,2616.7,5.25879]
[1749005223142,2.19780334,2616.8,2616.7,4.495]
[1749005223339,2.19780334,2616.8,2616.7,5.25879]
[1749005225240,2.19791795,2616.8,2616.7,5.25879]
[1749005227251,0.89251795,2616.8,2616.7,5.25879]
[1749005228953,0.89251795,2616.8,2616.6,0.76956218]
[1749005229150,2.19899489,2616.7,2616.6,0.76956218]
[1749005229354,2.19899489,2616.7,2616.6,1.19266218]
[1749005230152,0.89249489,2616.7,2616.6,1.19266218]
[1749005233160,0.89246731,2616.7,2616.6,1.19266218]
[1749005233563,0.89246731,2616.7,2616.6,0.42884218]
[1749005235061,0.89246731,2616.7,2616.6,1.19266218]
[1749005237261,0.89118778,2616.7,2616.6,1.19266218]
[1749005239867,0.89118778,2616.7,2616.6,0.42884218]
[1749005240764,0.89118778,2616.7,2616.6,1.19266218]
[1749005241066,0.89260109,2616.7,2616.6,1.19266218]
[1749005245071,1.88855917,2616.9,2616.7,0.76378]
[1749005245274,2.13304215,2616.8,2616.7,0.76378]
[1749005249072,1.2402,2616.8,2616.7,0.76378]
[1749005249273,2.13331451,2616.8,2616.7,0.76378]
[1749005253169,2.1336618,2616.8,2616.7,0.76378]
[1749005253872,0.8934618,2616.8,2616.7,0.76378]
[1749005254073,0.8934618,2616.8,2616.7,1.42908]
[1749005255374,0.8934618,2616.8,2616.7,0.76378]
[1749005255780,2.1450618,2616.8,2616.7,0.76378]
[1749005257080,2.1450618,2616.8,2616.6,0.42884218]
[1749005257081,2.9088418,2616.8,2616.6,0.42884218]
[1749005257383,2.9088518,2616.7,2616.6,0.42884218]
[1749005257876,2.1450618,2616.7,2616.6,0.42884218]
[1749005258978,2.9088518,2616.7,2616.6,0.42884218]
[1749005260273,2.1450618,2616.7,2616.6,1.19266218]
[1749005261183,2.90649978,2616.7,2616.6,0.42884218]
[1749005261482,2.14270978,2616.7,2616.6,1.19266218]
[1749005262174,2.14270978,2616.7,2616.6,0.42884218]
[1749005262684,2.14270978,2616.7,2616.6,1.19266218]
[1749005262887,2.90649978,2616.7,2616.6,0.42884218]
[1749005264979,2.90618332,2616.7,2616.6,0.42884218]
[1749005268285,8.79218332,2616.7,2616.6,0.42884218]
[1749005268779,8.02839332,2616.7,2616.6,1.19266218]
[1749005268979,8.02767572,2616.7,2616.6,0.42884218]
[1749005270383,8.79146572,2616.7,2616.6,0.42884218]
[1749005272889,7.90139,2616.7,2616.6,0.42884218]
[1749005273087,8.79137253,2616.7,2616.6,0.42884218]
[1749005275490,8.02758253,2616.7,2616.6,0.42884218]
[1749005276191,6.77598253,2616.7,2616.6,0.42884218]
[1749005276690,6.77598253,2616.7,2616.6,1.19266218]
[1749005276892,6.78236713,2616.7,2616.6,1.19266218]
[1749005278492,6.78236713,2616.7,2616.6,0.42884218]
[1749005278792,5.886,2616.7,2616.6,0.42884218]
[1749005278992,6.78238559,2616.7,2616.6,0.42884218]
[1749005279386,8.02838559,2616.7,2616.6,0.42884218]
[1749005279688,8.79217559,2616.7,2616.6,0.42884218]
[1749005279893,8.02838559,2616.7,2616.6,0.42884218]
[1749005280098,2.14238559,2616.7,2616.6,0.42884218]
[1749005280693,2.14228252,2616.7,2616.6,0.42884218]
[1749005280994,2.14228252,2616.7,2616.6,1.19266218]
[1749005281990,0.89628252,2616.7,2616.6,1.19266218]
[1749005283692,0.89631869,2616.7,2616.6,1.19266218]
[1749005287404,0.89636685,2616.8,2616.7,0.76379]
[1749005287699,0.8963677,2616.8,2616.7,5.25679]
[1749005290496,0.8963677,2616.8,2616.7,5.68479]
[1749005291504,0.00645917,2616.9,2616.8,0.76376]
[1749005291796,0.90298728,2616.9,2616.8,0.76376]
[1749005294204,2.14888728,2616.9,2616.8,0.76376]
[1749005295302,2.14888728,2616.9,2616.7,4.921]
[1749005295494,2.15622952,2616.8,2616.7,5.68478]
[1749005295701,2.15622952,2616.8,2616.7,1.19178]
[1749005296107,2.91998952,2616.8,2616.7,0.428]
[1749005296297,2.15622952,2616.8,2616.7,1.19179]
[1749005296904,2.15622952,2616.8,2616.7,0.428]
[1749005296905,2.91998952,2616.8,2616.7,0.428]
[1749005297407,6.12778952,2616.8,2616.7,0.428]
[1749005299418,6.14216007,2616.8,2616.7,0.428]
[1749005303210,5.23336,2616.8,2616.7,0.428]
[1749005303411,6.14122151,2616.8,2616.7,0.428]
[1749005303810,10.37746151,2616.8,2616.6,0.00574218]
[1749005304110,3.52905151,2616.7,2616.6,0.00574218]
[1749005304314,2.76526151,2616.7,2615.6,3.2078]
[1749005304518,3.2078,2616.2,2615.8,0.76403]
[1749005304816,0.76405,2615.9,2615.6,3.97189]
[1749005305117,2.15876151,2615.8,2615.7,0.76408]
[1749005305412,2.15876151,2615.8,2615.6,3.2078]
[1749005305613,2.76526151,2615.7,2615.6,3.2078]
[1749005305811,2.76526151,2615.7,2615.6,3.9719]
[1749005307113,2.76223055,2615.7,2615.6,3.9719]
[1749005308515,0.90483055,2615.7,2615.6,3.9719]
[1749005308810,0.90483055,2615.7,2615.6,4.5783]
[1749005311523,0.90483055,2615.7,2615.6,5.9006]
[1749005311718,0.90483055,2615.7,2615.6,4.5783]
[1749005312019,0.90483055,2615.7,2615.6,3.2078]
[1749005312922,0.90483055,2615.7,2615.6,3.97191]
[1749005313715,0.90483055,2615.7,2615.6,0.76411]
[1749005314815,1.7279,2615.9,2615.6,0.76411]
[1749005315020,1.7279,2615.9,2615.5,4.49674218]
[1749005315021,0.90600884,2615.8,2615.7,0.76408]
[1749005316322,0.90600884,2615.8,2615.6,0.7641]
[1749005316515,0.6249,2615.7,2615.6,0.7641]
[1749005316718,1.53090884,2615.7,2615.6,0.7641]
[1749005317623,0.90600884,2615.7,2615.6,0.7641]
[1749005318822,1.3183,2615.8,2615.7,0.76408]
[1749005319023,2.22421131,2615.8,2615.7,0.76408]
[1749005322829,1.3183,2615.8,2615.7,0.76408]
[1749005323022,2.22485715,2615.8,2615.7,0.76408]
[1749005325532,2.22485715,2615.8,2615.6,0.76409]
[1749005325726,0.90655715,2615.7,2615.6,0.76409]
[1749005326831,0.90505663,2615.7,2615.6,0.76409]
[1749005327028,0.90505663,2615.7,2615.6,0.76411]
[1749005327229,0.90505663,2615.7,2615.5,5.26087218]
[1749005327429,1.3183,2615.8,2615.6,0.76411]
[1749005327628,0.90534021,2615.7,2615.6,0.76411]
[1749005330824,0.4277,2615.9,2615.7,0.76408]
[1749005331028,0.90588496,2615.8,2615.7,0.76408]
[1749005331231,0.90588496,2615.8,2615.6,0.7641]
[1749005331533,0.90588496,2615.7,2615.6,0.7641]
[1749005331733,0.90622737,2615.8,2615.7,0.76408]
[1749005339037,0.4277,2615.9,2615.7,0.76408]
[1749005339236,2.20984738,2615.8,2615.7,0.76408]
[1749005340233,2.20984738,2615.8,2615.5,7.70454218]
[1749005340432,0.90594738,2615.7,2615.6,0.76411]
[1749005341636,1.3039,2615.8,2615.7,0.76408]
[1749005341841,2.21590544,2615.8,2615.7,0.76408]
[1749005342143,2.21590544,2615.8,2615.6,0.76409]
[1749005342346,0.91200544,2615.7,2615.5,8.46868218]
[1749005342549,0.91200544,2615.6,2615.5,8.46868218]
[1749005342746,0.91200544,2615.6,2615.5,7.70454218]
[1749005343051,2.93371544,2615.6,2615.5,0.00574218]
[1749005343237,3.58201544,2615.6,2615.5,0.00574218]
[1749005345552,3.58080309,2615.6,2615.5,0.00574218]
[1749005349352,5.87781,2615.6,2615.5,0.00574218]
[1749005349650,6.78786368,2615.6,2615.5,0.00574218]
[1749005351549,6.02375368,2615.6,2615.5,0.00574218]
[1749005351750,6.02375368,2615.6,2615.5,0.76988218]
[1749005352752,6.78786368,2615.6,2615.5,0.00574218]
[1749005353353,6.78637366,2615.6,2615.5,0.00574218]
[1749005353547,6.78637366,2615.6,2615.0,3.81748]
[1749005353548,0.76429,2615.0,2614.7,5.25536]
[1749005353753,0.90856366,2614.9,2614.7,0.76436]
[1749005353953,0.90856366,2614.8,2614.7,1.38486]
[1749005354354,1.32876366,2614.8,2614.7,1.38486]
[1749005354555,1.32876366,2614.8,2614.7,1.38488]
[1749005354760,1.32876366,2614.8,2614.7,0.6205]
[1749005354951,2.09311366,2614.8,2614.6,7.6988]
[1749005355157,0.90856366,2614.7,2614.6,7.6988]
[1749005355555,0.90856366,2614.7,2614.5,0.00574218]
[1749005355755,0.90856366,2614.6,2614.5,0.00574218]
[1749005356556,1.53186366,2614.6,2614.5,0.00574218]
[1749005356751,2.29627366,2614.6,2614.5,0.00574218]
[1749005357158,1.99951,2614.6,2614.5,0.00574218]
[1749005357362,2.90657128,2614.6,2614.5,0.00574218]
[1749005359147,2.14216128,2614.6,2614.5,0.00574218]
[1749005359552,3.41776128,2614.6,2614.5,0.00574218]
[1749005360354,4.18217128,2614.6,2614.5,0.00574218]
[1749005360853,0.90706128,2614.6,2614.5,0.77017218]
[1749005361255,0.90512143,2614.6,2614.5,0.00574218]
[1749005361972,1.66953143,2614.6,2614.5,0.00574218]
[1749005362271,0.90512143,2614.6,2614.5,0.00574218]
[1749005362451,0.90512143,2614.6,2614.5,0.77017218]
[1749005363254,0.90512143,2614.6,2614.5,0.00574218]
[1749005363859,2.80442143,2614.6,2614.5,0.00574218]
[1749005365566,1.53712143,2614.6,2614.5,0.77017218]
[1749005365958,1.53712143,2614.6,2614.5,0.00574218]
[1749005367066,1.53712143,2614.6,2614.5,0.77017218]
[1749005367260,1.53712143,2614.6,2614.5,0.00574218]
[1749005368662,1.53712143,2614.6,2614.5,0.77017218]
[1749005369063,1.0253,2614.8,2614.7,0.76438]
[1749005369263,0.76441,2614.6,2614.5,0.00574218]
[1749005369565,0.9049262,2614.6,2614.5,0.00574218]
[1749005369966,2.2192262,2614.6,2614.5,0.00574218]
[1749005372858,2.6367262,2614.6,2614.5,0.00574218]
[1749005373066,1.7318,2614.6,2614.5,0.00574218]
[1749005373262,2.63701753,2614.6,2614.5,0.00574218]
[1749005373963,2.63701753,2614.6,2614.5,0.77017218]
[1749005376356,2.63701753,2614.6,2614.5,0.00574218]
[1749005376562,2.63701753,2614.6,2614.5,0.77017218]
[1749005377069,1.7318,2614.6,2614.5,0.77017218]
[1749005377272,2.63734495,2614.6,2614.5,0.77017218]
[1749005379968,2.63734495,2614.6,2614.5,0.00574218]
[1749005380470,3.27574495,2614.6,2614.5,0.00574218]
[1749005380769,3.27574495,2614.6,2614.5,0.77017218]
[1749005381068,3.27574495,2614.6,2614.5,0.00574218]
[1749005381268,4.04464046,2614.6,2614.5,0.00574218]
[1749005381463,3.28024046,2614.6,2614.5,0.77017218]
[1749005382863,4.04465046,2614.6,2614.5,0.00574218]
[1749005383563,4.04618555,2614.6,2614.5,0.00574218]
[1749005384271,3.28177555,2614.6,2614.5,0.77017218]
[1749005385070,2.3702,2614.6,2614.5,0.77017218]
[1749005385372,3.2820905,2614.6,2614.5,0.77017218]
[1749005385974,4.0465005,2614.6,2614.5,0.00574218]
[1749005386168,3.2820905,2614.6,2614.5,0.00574218]
[1749005386671,3.2820905,2614.6,2614.5,0.77017218]
[1749005387172,3.2820905,2614.6,2614.5,0.00574218]
[1749005387662,3.2824523,2614.6,2614.5,0.00574218]
[1749005387973,4.0468623,2614.6,2614.5,0.00574218]
[1749005389275,4.04683765,2614.6,2614.5,0.00574218]
[1749005390368,7.25463765,2614.6,2614.5,0.00574218]
[1749005390867,0.76454,2614.2,2614.0,5.123]
[1749005391072,0.76454,2614.2,2614.0,4.487]
[1749005391073,1.55722765,2614.1,2614.0,4.487]
[1749005391573,1.55722765,2614.1,2614.0,5.25158]
[1749005393175,1.56765658,2614.1,2614.0,5.25158]
[1749005397371,1.5670249,2614.1,2614.0,5.25158]
[1749005399272,1.56695442,2614.1,2614.0,5.25158]
[1749005400979,1.56711778,2614.1,2614.0,5.25158]
[1749005403483,0.92211778,2614.1,2614.0,5.25158]
[1749005403982,0.00574218,2614.3,2614.2,0.76452]
[1749005404185,0.92789842,2614.3,2614.2,0.76452]
[1749005404684,0.92789842,2614.3,2614.2,2.03472]
[1749005404989,0.92789842,2614.3,2614.2,19.47872]
[1749005407775,0.92616432,2614.3,2614.2,19.47872]
[1749005410785,0.92616432,2614.3,2614.2,2.03472]
[1749005411087,1.34126432,2614.3,2614.2,19.47572]
[1749005411683,1.34154167,2614.3,2614.2,19.47572]
[1749005411885,1.34154167,2614.3,2614.2,24.47572]
[1749005412386,1.34154167,2614.3,2614.2,19.47572]
[1749005412692,0.42084218,2614.3,2614.2,19.47572]
[1749005412888,0.42084218,2614.3,2614.2,24.47572]
[1749005413194,1.2806,2615.0,2614.8,0.76432]
[1749005413395,0.92048529,2614.9,2614.8,0.76432]
[1749005414989,2.21178529,2614.9,2614.8,0.76432]
[1749005415697,2.21175062,2614.9,2614.8,0.76432]
[1749005417500,2.97608062,2614.9,2614.7,0.76436]
[1749005417693,2.24535062,2614.8,2614.7,0.76438]
[1749005418296,3.00971062,2614.8,2614.6,5.8251]
[1749005418494,2.90505062,2614.7,2614.6,5.8251]
[1749005419704,2.90476427,2614.7,2614.6,5.8251]
[1749005420898,1.57986427,2614.7,2614.6,5.8251]
[1749005423608,1.57984498,2614.7,2614.6,5.8251]
[1749005427609,1.58017948,2614.7,2614.6,5.8251]
[1749005431609,1.57863252,2614.7,2614.6,5.2514]
[1749005432115,2.34301252,2614.7,2614.6,4.487]
[1749005432309,6.09583252,2614.7,2614.3,4.484]
[1749005432508,2.22833252,2614.6,2614.5,0.76443]
[1749005435213,0.91893252,2614.6,2614.5,0.76443]
[1749005435513,0.6597,2614.7,2614.6,0.76441]
[1749005435719,1.5793002,2614.7,2614.6,0.76441]
[1749005439425,0.6597,2614.7,2614.6,0.76441]
[1749005439613,1.58004388,2614.7,2614.6,0.76441]
[1749005443520,1.5799632,2614.7,2614.6,0.76441]
[1749005445819,1.5799632,2614.7,2614.6,1.42521]
[1749005447425,0.6597,2614.7,2614.6,1.42521]
[1749005447721,1.57984729,2614.7,2614.6,1.42521]
[1749005451025,1.57984729,2614.7,2614.6,0.76441]
[1749005455626,1.58561651,2614.7,2614.6,0.76441]
[1749005457528,1.58561651,2614.7,2614.5,5.24841]
[1749005457734,2.81091651,2614.6,2614.5,5.24843]
[1749005459028,3.57532651,2614.6,2614.4,0.5737]
[1749005459232,2.26501651,2614.5,2614.4,0.5737]
[1749005459435,2.26497142,2614.5,2614.4,0.5737]
[1749005459639,2.26496291,2614.5,2614.4,0.5737]
[1749005459832,2.26496291,2614.5,2614.4,1.33816]
[1749005464241,0.92586291,2614.5,2614.4,4.54596]
[1749005466043,0.6597,2614.7,2614.6,0.76441]
[1749005466236,1.58279009,2614.7,2614.6,0.76441]
[1749005467538,0.92309009,2614.7,2614.6,0.76441]
[1749005469942,1.8955,2614.9,2614.8,0.76435]
[1749005470141,2.81868341,2614.9,2614.7,0.76436]
[1749005470443,2.20308341,2614.8,2614.7,0.76438]
[1749005473949,0.631,2614.9,2614.8,0.76435]
[1749005474248,1.5533357,2614.9,2614.8,0.76435]
[1749005475244,2.8496357,2614.9,2614.8,0.76435]
[1749005476843,2.8496357,2614.9,2614.6,4.482]
[1749005476844,2.8496357,2614.9,2614.7,0.76436]
[1749005477145,2.2186357,2614.8,2614.7,0.76436]
[1749005478051,2.21873517,2614.8,2614.7,0.76436]
[1749005478559,2.21873517,2614.8,2614.4,3.7815]
[1749005478850,3.60272517,2614.7,2614.4,4.54595]
[1749005479048,2.20603517,2614.6,2614.4,0.5737]
[1749005479254,6.17826517,2614.5,2614.4,0.5737]
[1749005479754,11.17826517,2614.5,2614.4,0.5737]
[1749005480453,6.17781065,2614.5,2614.4,0.5737]
[1749005481562,5.41338065,2614.5,2614.4,1.33816]
[1749005481855,5.41280111,2614.5,2614.4,1.33816]
[1749005482253,5.41280111,2614.5,2614.4,0.5737]
[1749005482254,6.17723111,2614.5,2614.4,0.5737]
[1749005484058,5.41280111,2614.5,2614.4,0.5737]
[1749005484360,2.20500111,2614.5,2614.4,1.33816]
[1749005485957,2.96827154,2614.5,2614.4,0.5737]
[1749005488164,2.20384154,2614.5,2614.4,1.33816]
[1749005488757,2.96827154,2614.5,2614.4,0.5737]
[1749005489461,2.96827154,2614.5,2614.4,1.33816]
[1749005489663,2.20384154,2614.5,2614.4,1.33816]
[1749005490662,0.92024154,2614.5,2614.4,1.33816]
[1749005490863,0.92024154,2614.5,2614.4,0.5737]
[1749005491162,0.92024154,2614.5,2614.4,1.33816]
[1749005493164,0.92024154,2614.5,2614.4,0.5737]
[1749005493365,0.92024154,2614.5,2614.4,1.33816]
[1749005494965,1.68468154,2614.5,2614.4,0.5737]
[1749005495165,0.92024154,2614.5,2614.4,0.5737]
[1749005495760,2.22014154,2614.5,2614.4,0.5737]
[1749005496669,2.22014154,2614.5,2614.4,1.33816]
[1749005497768,1.2999,2614.5,2614.4,1.33816]
[1749005497969,2.22020809,2614.5,2614.4,1.33816]
[1749005500067,0.92030809,2614.5,2614.4,1.33816]
[1749005501777,0.6323,2614.7,2614.6,0.76441]
[1749005502078,1.55329212,2614.7,2614.6,0.76441]
[1749005504678,2.89019212,2614.7,2614.6,0.76441]
[1749005505266,2.89019212,2614.7,2614.4,0.6403]
[1749005505467,0.92099212,2614.6,2614.5,0.76441]
[1749005505878,0.92099212,2614.6,2614.4,0.6403]
[1749005506074,1.2853,2614.6,2614.5,0.76444]
[1749005506375,2.20655093,2614.6,2614.5,1.33814]
[1749005509279,0.92125093,2614.6,2614.5,1.33814]
[1749005509967,0.6323,2614.7,2614.6,0.76441]
[1749005510170,0.92174321,2614.7,2614.6,0.76441]
[1749005511183,0.92174321,2614.7,2614.5,1.33811]
[1749005511384,0.92174321,2614.6,2614.5,1.33811]
[1749005517882,0.6644,2614.7,2614.6,0.76441]
[1749005518082,1.58416573,2614.7,2614.6,0.76441]
[1749005519582,1.58454741,2614.7,2614.6,0.76441]
[1749005520687,1.58454741,2614.7,2614.5,0.76443]
[1749005520888,1.2258,2614.6,2614.5,0.76443]
[1749005521992,2.14600547,2614.6,2614.5,0.76443]
[1749005522880,2.14600547,2614.6,2614.5,1.33813]
[1749005524695,0.92038806,2614.6,2614.5,1.33814]
[1749005527495,0.6644,2614.7,2614.6,0.76441]
[1749005528396,1.5847965,2614.7,2614.6,0.76441]
[1749005528896,1.5847879,2614.7,2614.6,0.76441]
[1749005532701,2.3491879,2614.7,2614.5,0.5737]
[1749005532904,1.3395,2614.6,2614.5,1.33813]
[1749005533093,2.25973756,2614.6,2614.5,1.33813]
[1749005534408,2.25973756,2614.6,2614.5,0.5737]
[1749005534795,3.02414756,2614.6,2614.5,0.5737]
[1749005536091,6.23194756,2614.6,2614.5,0.5737]
[1749005536296,11.23194756,2614.6,2614.5,0.5737]
[1749005537001,16.35320147,2614.6,2613.8,0.00574218]
[1749005537208,0.76461,2613.9,2613.8,0.00574218]
[1749005537395,1.68451147,2613.9,2613.8,0.00574218]
[1749005538094,2.90461147,2613.9,2613.8,0.00574218]
[1749005538902,2.14000147,2613.9,2613.8,0.00574218]
[1749005539704,2.90461147,2613.9,2613.8,0.00574218]
[1749005540004,0.76467,2613.7,2613.6,1.7479]
[1749005540199,4.89237147,2613.7,2613.6,1.7479]
[1749005540404,0.76473,2613.5,2613.4,0.2756]
[1749005540604,1.68259027,2613.5,2613.4,0.2756]
[1749005540902,6.68259027,2613.5,2613.4,0.2756]
[1749005541802,0.76479,2613.3,2613.2,0.00574218]
[1749005542007,4.89045027,2613.3,2613.2,0.00574218]
[1749005542600,6.15745027,2613.3,2613.2,0.00574218]
[1749005543202,6.77555027,2613.3,2613.2,0.00574218]
[1749005543604,6.01076027,2613.3,2613.2,0.00574218]
[1749005543804,2.80296027,2613.3,2613.2,0.77056218]
[1749005545706,2.80296027,2613.3,2613.2,0.00574218]
[1749005545707,3.56775027,2613.3,2613.2,0.00574218]
[1749005549298,6.77555027,2613.3,2613.2,0.00574218]
[1749005550203,6.76853131,2613.3,2613.2,0.00574218]
[1749005552300,12.65430264,2613.3,2613.2,0.00574218]
[1749005552899,1.91207,2613.2,2612.6,0.76498]
[1749005553099,0.76495,2612.8,2612.6,0.76498]
[1749005553610,1.261,2612.7,2612.6,0.76498]
[1749005554503,6.65086,2613.1,2612.4,7.69054218]
[1749005554808,4.478,2613.2,2612.6,0.06704602]
[1749005555004,0.76489,2613.0,2612.6,0.06704602]
[1749005555204,1.261,2612.9,2612.8,0.76493]
[1749005556214,1.9063,2612.9,2612.8,0.76493]
[1749005556512,0.6453,2612.9,2612.8,0.76493]
[1749005557112,0.76487,2613.0,2612.8,0.76493]
[1749005559208,0.7649,2612.9,2612.7,0.6646]
[1749005559410,0.7649,2612.9,2612.7,1.42954]
[1749005559915,0.76492,2612.9,2612.7,1.42954]
[1749005560116,0.76493,2612.8,2612.7,0.6646]
[1749005560609,3.2078,2613.0,2612.7,1.42955]
[1749005560610,0.76491,2612.9,2612.7,1.42955]
[1749005560816,0.91134305,2612.8,2612.7,1.42955]
[1749005562226,1.67627305,2612.8,2612.7,0.6646]
[1749005563717,0.91134305,2612.8,2612.7,0.6646]
[1749005564119,3.2078,2613.0,2612.7,0.6646]
[1749005564317,2.18232925,2612.9,2612.7,0.6646]
[1749005564518,0.91282925,2612.8,2612.7,1.42956]
[1749005564828,0.91282925,2612.8,2612.7,0.6646]
[1749005565019,0.91282925,2612.8,2612.7,1.42956]
[1749005566819,0.91536559,2612.8,2612.7,1.42956]
[1749005568116,0.91536559,2612.8,2612.7,2.05556]
[1749005570618,0.91536559,2612.8,2612.7,1.42956]
[1749005571117,0.91536559,2612.8,2612.7,1.49660602]
[1749005572333,0.76488,2613.0,2612.8,0.76492]
[1749005572529,1.68046683,2612.9,2612.7,1.49659602]
[1749005572731,0.91556683,2612.8,2612.7,1.49659602]
[1749005575228,0.91556683,2612.8,2612.7,0.83199602]
[1749005576233,0.91520478,2612.8,2612.7,0.83199602]
[1749005576932,1.68013478,2612.8,2612.7,0.06704602]
[1749005578828,0.91520478,2612.8,2612.7,0.06704602]
[1749005579027,0.91520478,2612.8,2612.7,0.83200602]
[1749005579229,0.91520478,2612.8,2612.7,0.06704602]
[1749005579934,0.91567947,2612.8,2612.7,0.06704602]
[1749005580131,0.76492,2612.9,2612.7,0.06704602]
[1749005580437,0.91567945,2612.8,2612.7,0.06704602]
[1749005581137,1.68060945,2612.8,2612.7,0.06704602]
[1749005582032,0.91567945,2612.8,2612.7,0.06704602]
[1749005582531,0.76502,2612.5,2612.4,0.00574218]
[1749005582835,1.6873023,2612.5,2612.4,0.00574218]
[1749005585138,1.6873023,2612.5,2612.4,0.0727882]
[1749005585528,1.6873023,2612.5,2611.4,1.91333]
[1749005585529,16.2852823,2612.5,2611.4,4.477]
[1749005585734,3.2078,2611.9,2611.7,0.76525]
[1749005585945,0.9222823,2611.8,2611.7,0.76525]
[1749005586434,0.93759067,2611.8,2611.5,0.00574218]
[1749005586629,0.93759067,2611.7,2611.6,0.76528]
[1749005587734,0.93759067,2611.7,2611.5,0.77104218]
[1749005587931,0.93759067,2611.6,2611.5,0.77104218]
[1749005589039,0.93759067,2611.6,2611.5,0.00574218]
[1749005589337,0.93759067,2611.6,2611.5,0.77105218]
[1749005589542,0.93759067,2611.6,2611.5,0.00574218]
[1749005590437,0.93272217,2611.6,2611.5,0.77105218]
[1749005592128,1.69800217,2611.6,2611.5,0.00574218]
[1749005592331,2.23982217,2611.6,2611.5,0.00574218]
[1749005592739,2.23982217,2611.6,2611.5,0.77105218]
[1749005593137,2.23982217,2611.6,2611.5,0.00574218]
[1749005593437,0.93272217,2611.6,2611.5,0.77105218]
[1749005593631,0.00574218,2612.0,2611.6,0.76526]
[1749005593632,0.6062,2611.9,2611.6,0.76526]
[1749005593836,2.20056074,2611.8,2611.6,0.76526]
[1749005594040,0.93096074,2611.7,2611.6,0.76526]
[1749005594234,0.93100662,2611.7,2611.6,0.76526]
[1749005594639,0.93100662,2611.7,2611.5,1.39124218]
[1749005594945,1.2696,2611.8,2611.5,0.77105218]
[1749005595138,0.9307333,2611.7,2611.5,0.77105218]
[1749005595441,1.2696,2611.6,2611.5,0.77105218]
[1749005595939,1.2696,2611.6,2611.5,0.00574218]
[1749005596331,1.2696,2611.6,2611.5,0.77105218]
[1749005598145,2.20022717,2611.6,2611.5,0.77105218]